lending/lending_fUSD_20250501
["ID","MTS","AMOUNT","RATE_DAILY","PERIOD"]
[359560590,1746124257757,-883.11,0.00035616,11]
[359560591,1746124257766,-450.0,0.00035616,11]
[359560592,1746124257776,-450.0,0.00035616,11]
[359560593,1746124257786,-601.38,0.00035616,2]
[359560594,1746124257796,-500.0,0.00035616,120]
[359560595,1746124257806,-450.0,0.00035616,11]
[359560596,1746124257816,-450.0,0.00035616,11]
[359560597,1746124257826,-569.9,0.00035616,11]
[359560598,1746124257836,-450.0,0.00035616,11]
[359560599,1746124257846,-450.0,0.00035616,11]
[359560600,1746124257856,-450.0,0.00035616,11]
[359560601,1746124257865,-450.0,0.00035616,11]
[359560602,1746124258092,-450.0,0.00035616,11]
[359560603,1746124258103,-753.32,0.00035616,11]
[359560604,1746124258113,-300.0,0.00035616,11]
[359560605,1746124258125,-450.0,0.00035616,11]
[359560606,1746124258136,-737.91,0.00035616,11]
[359560607,1746124258147,-450.0,0.00035616,11]
[359560608,1746124258157,-450.0,0.00035616,2]
[359560609,1746124258169,-450.0,0.00035616,11]
[359560610,1746124258178,-450.0,0.00035616,11]
[359560611,1746124258188,-731.02,0.00035616,11]
[359560612,1746124258199,-450.0,0.00035616,11]
[359560613,1746124258209,-500.0,0.00035616,11]
[359560614,1746124258218,-508.84368406,0.00035616,11]
[359560615,1746124258228,-500.0,0.00035616,2]
[359560616,1746124258237,-500.0,0.00035616,2]
[359560617,1746124258247,-450.0,0.00035616,11]
[359560618,1746124258256,-500.0,0.00035616,2]
[359560619,1746124258266,-1176.37,0.00035616,11]
[359560620,1746124258277,-500.0,0.00035616,2]
[359560621,1746124258287,-500.0,0.00035616,2]
[359560622,1746124258296,-500.0,0.00035616,2]
[359560623,1746124258305,-500.0,0.00035616,2]
[359560624,1746124258315,-500.0,0.00035616,2]
[359560625,1746124258324,-500.0,0.00035616,2]
[359560626,1746124258333,-500.0,0.00035616,2]
[359560627,1746124258343,-500.0,0.00035616,2]
[359560628,1746124258353,-500.0,0.00035616,2]
[359560629,1746124258362,-450.0,0.00035616,11]
[359560630,1746124258371,-500.0,0.00035616,2]
[359560631,1746124258381,-450.0,0.00035616,11]
[359560632,1746124258391,-500.0,0.00035616,2]
[359560633,1746124258400,-1206.25,0.00035616,11]
[359560634,1746124258411,-940.02,0.00035616,11]
[359560635,1746124258420,-500.0,0.00035616,2]
[359560636,1746124258430,-622.42034215,0.00035616,2]
[359560637,1746124258440,-450.0,0.00035616,11]
[359560638,1746124258450,-450.0,0.00035616,11]
[359560639,1746124258459,-816.35,0.00035616,11]
[359560640,1746124258469,-450.0,0.00035616,11]
[359560641,1746124258479,-1356.56,0.00035616,11]
[359560642,1746124258489,-979.2,0.00035616,11]
[359560643,1746124258498,-450.0,0.00035616,11]
[359560644,1746124258508,-450.0,0.00035616,11]
[359560645,1746124258517,-450.0,0.00035616,11]
[359560646,1746124258527,-1095.83,0.00035616,11]
[359560647,1746124258537,-515.38688249,0.00035616,11]
[359560648,1746124258547,-450.0,0.00035616,11]
[359560649,1746124258557,-450.0,0.00035616,11]
[359560650,1746124258566,-450.0,0.00035616,11]
[359560651,1746124258575,-593.58,0.00035616,11]
[359560652,1746124258584,-450.0,0.00035616,11]
[359560653,1746124258594,-631.68,0.00035616,11]
[359560654,1746124258604,-542.85638833,0.00035616,11]
[359560655,1746124258613,-450.0,0.00035616,11]
[359560656,1746124258623,-450.0,0.00035616,11]
[359560657,1746124258633,-450.0,0.00035616,11]
[359560658,1746124258643,-450.0,0.00035616,11]
[359560659,1746124258653,-814.05,0.00035616,11]
[359560660,1746124258663,-450.0,0.00035616,11]
[359560661,1746124258673,-450.0,0.00035616,11]
[359560662,1746124258683,-191.37341352,0.00035616,11]
[359560663,1746124258693,-450.0,0.00035616,11]
[359560664,1746124258702,-450.0,0.00035616,11]
[359560665,1746124258713,-513.870771,0.00035616,7]
[359560666,1746124258722,-450.0,0.00035616,11]
[359560667,1746124258733,-513.870771,0.00035616,7]
[359560668,1746124258743,-513.870771,0.00035616,7]
[359560669,1746124258752,-513.870771,0.00035616,7]
[359560670,1746124258762,-500.0,0.00035616,11]
[359560671,1746124258772,-450.0,0.00035616,11]
[359560672,1746124258782,-615.23,0.00035616,11]
[359560673,1746124258793,-450.0,0.00035616,11]
[359560674,1746124258803,-450.0,0.00035616,11]
[359560675,1746124258813,-450.0,0.00035616,11]
[359560676,1746124258821,-450.0,0.00035616,11]
[359560677,1746124258830,-450.0,0.00035616,11]
[359560678,1746124258840,-457.51,0.00035616,11]
[359560679,1746124258850,-450.0,0.00035616,11]
[359560680,1746124258860,-450.0,0.00035616,11]
[359560681,1746124258869,-450.0,0.00035616,11]
[359560682,1746124258879,-547.01305704,0.00035616,11]
[359560683,1746124258889,-513.870771,0.00035616,7]
[359560684,1746124258900,-513.870771,0.00035616,7]
[359560685,1746124258909,-513.870771,0.00035616,7]
[359560686,1746124258919,-713.83,0.00035616,11]
[359560687,1746124258929,-513.870771,0.00035616,7]
[359560688,1746124258938,-450.0,0.00035616,11]
[359560689,1746124258949,-450.0,0.00035616,11]
[359560690,1746124258958,-450.0,0.00035616,11]
[359560691,1746124258968,-530.0,0.00035616,11]
[359560692,1746124258979,-450.0,0.00035616,11]
[359560693,1746124258988,-450.0,0.00035616,11]
[359560694,1746124258998,-450.0,0.00035616,11]
[359560695,1746124259007,-538.60440321,0.00035616,11]
[359560696,1746124259016,-450.0,0.00035616,11]
[359560697,1746124259026,-151.0,0.00035616,7]
[359560698,1746124259035,-542.58360032,0.00035616,11]
[359560699,1746124259045,-151.0,0.00035616,7]
[359560700,1746124259054,-151.0,0.00035616,7]
[359560701,1746124259064,-450.0,0.00035616,11]
[359560702,1746124259073,-151.0,0.00035616,7]
[359560703,1746124259083,-450.0,0.00035616,11]
[359560704,1746124259092,-520.28560519,0.00035616,11]
[359560705,1746124259102,-516.25,0.00035616,11]
[359560706,1746124259112,-450.0,0.00035616,11]
[359560707,1746124259124,-450.0,0.00035616,11]
[359560708,1746124259133,-1280.03,0.00035616,11]
[359560709,1746124259143,-450.0,0.00035616,11]
[359560710,1746124259152,-450.0,0.00035616,11]
[359560711,1746124259163,-450.0,0.00035616,11]
[359560712,1746124259172,-562.93,0.00035616,11]
[359560713,1746124259182,-450.0,0.00035616,11]
[359560714,1746124259192,-447.7297746,0.00035616,11]
[359560715,1746124259202,-450.0,0.00035616,11]
[359560716,1746124259212,-450.0,0.00035616,11]
[359560717,1746124259221,-526.55,0.00035616,11]
[359560718,1746124259232,-371.60953237,0.00035616,11]
[359560719,1746124259241,-450.0,0.00035616,11]
[359560720,1746124259251,-535.78,0.00035616,11]
[359560721,1746124259260,-583.0787339,0.00035616,11]
[359560722,1746124259270,-450.0,0.00035616,11]
[359560723,1746124259279,-450.0,0.00035616,11]
[359560724,1746124259289,-530.0,0.00035616,11]
[359560725,1746124259298,-450.0,0.00035616,11]
[359560726,1746124259307,-450.0,0.00035616,11]
[359560727,1746124259317,-450.0,0.00035616,11]
[359560728,1746124259326,-450.0,0.00035616,11]
[359560729,1746124259335,-500.0,0.00035616,11]
[359560730,1746124259345,-450.0,0.00035616,11]
[359560731,1746124259354,-450.0,0.00035616,11]
[359560732,1746124259364,-450.0,0.00035616,11]
[359560733,1746124259374,-500.0,0.00035616,11]
[359560734,1746124259383,-450.0,0.00035616,11]
[359560735,1746124259393,-630.63738424,0.00035616,11]
[359560736,1746124259402,-450.0,0.00035616,11]
[359560737,1746124259412,-450.0,0.00035616,11]
[359560738,1746124259422,-450.0,0.00035616,11]
[359560739,1746124259431,-450.0,0.00035616,11]
[359560740,1746124259441,-500.0,0.00035616,11]
[359560741,1746124259450,-450.0,0.00035616,11]
[359560742,1746124259460,-500.0,0.00035616,11]
[359560743,1746124259469,-500.0,0.00035616,11]
[359560744,1746124259479,-450.0,0.00035616,11]
[359560745,1746124259489,-500.0,0.00035616,11]
[359560746,1746124259499,-529.94218956,0.00035616,11]
[359560747,1746124259508,-450.0,0.00035616,11]
[359560748,1746124259518,-450.0,0.00035616,11]
[359560749,1746124259528,-450.0,0.00035616,11]
[359560750,1746124259537,-450.0,0.00035616,11]
[359560751,1746124259547,-450.0,0.00035616,11]
[359560752,1746124259558,-460.05,0.00035616,11]
[359560753,1746124259568,-777.42,0.00035616,11]
[359560754,1746124259578,-530.0,0.00035616,11]
[359560755,1746124259588,-541.27,0.00035616,11]
[359560756,1746124259597,-450.0,0.00035616,11]
[359560757,1746124259608,-450.0,0.00035616,11]
[359560758,1746124259618,-450.0,0.00035616,11]
[359560759,1746124259629,-450.0,0.00035616,11]
[359560760,1746124259638,-500.85442887,0.00035616,11]
[359560761,1746124259648,-450.0,0.00035616,11]
[359560762,1746124259659,-450.0,0.00035616,11]
[359560763,1746124259669,-511.69904152,0.00035616,11]
[359560764,1746124259679,-450.0,0.00035616,11]
[359560765,1746124259690,-825.98,0.00035616,11]
[359560766,1746124259700,-2018.06,0.00035616,11]
[359560767,1746124259709,-450.0,0.00035616,11]
[359560768,1746124259719,-450.0,0.00035616,11]
[359560769,1746124259727,-450.0,0.00035616,11]
[359560770,1746124259736,-450.0,0.00035616,11]
[359560771,1746124259746,-541.37324819,0.00035616,11]
[359560772,1746124259755,-450.0,0.00035616,11]
[359560773,1746124259764,-658.42,0.00035616,11]
[359560774,1746124259773,-561.49318889,0.00035616,11]
[359560775,1746124259782,-621.2,0.00035616,11]
[359560776,1746124259793,-450.0,0.00035616,11]
[359560777,1746124259803,-879.82,0.00035616,11]
[359560778,1746124259812,-450.0,0.00035616,11]
[359560779,1746124259821,-596.0721259,0.00035616,11]
[359560780,1746124259830,-450.0,0.00035616,11]
[359560781,1746124259839,-450.0,0.00035616,11]
[359560782,1746124259848,-450.0,0.00035616,11]
[359560783,1746124259857,-906.04,0.00035616,11]
[359560784,1746124259866,-500.0,0.00035616,11]
[359560785,1746124259875,-500.0,0.00035616,11]
[359560786,1746124259884,-500.0,0.00035616,11]
[359560787,1746124259894,-500.0,0.00035616,11]
[359560788,1746124259903,-501.62771863,0.00035616,11]
[359560789,1746124259912,-500.0,0.00035616,11]
[359560790,1746124259921,-500.0,0.00035616,11]
[359560791,1746124259931,-500.0,0.00035616,11]
[359560792,1746124259941,-500.0,0.00035616,11]
[359560793,1746124259950,-450.0,0.00035616,11]
[359560794,1746124259960,-500.0,0.00035616,11]
[359560795,1746124259969,-500.0,0.00035616,11]
[359560796,1746124259980,-536.05708317,0.00035616,11]
[359560797,1746124259989,-450.0,0.00035616,11]
[359560798,1746124259999,-500.0,0.00035616,11]
[359560799,1746124260009,-490.98,0.00035616,11]
[359560800,1746124260019,-500.0,0.00035616,11]
[359560801,1746124260029,-357.03972644,0.00035616,11]
[359560802,1746124260038,-450.0,0.00035616,11]
[359560803,1746124260048,-981.28,0.00035616,11]
[359560804,1746124260058,-616.26,0.00035616,11]
[359560805,1746124260068,-450.0,0.00035616,11]
[359560806,1746124260078,-571.32054317,0.00035616,11]
[359560807,1746124260087,-224.1274995,0.00035616,11]
[359560808,1746124260097,-536.17875278,0.00035616,11]
[359560809,1746124260106,-450.0,0.00035616,11]
[359560810,1746124260117,-499.40560064,0.00035616,11]
[359560811,1746124260128,-450.0,0.00035616,11]
[359560812,1746124260138,-450.0,0.00035616,11]
[359560813,1746124260147,-461.9,0.00035616,11]
[359560814,1746124260158,-450.0,0.00035616,11]
[359560815,1746124260168,-950.32,0.00035616,11]
[359560816,1746124260178,-500.14072242,0.00035616,11]
[359560817,1746124260188,-450.0,0.00035616,11]
[359560818,1746124260200,-450.0,0.00035616,11]
[359560819,1746124260210,-749.0,0.00035616,11]
[359560820,1746124260222,-503.81097002,0.00035616,11]
[359560821,1746124260232,-971.17,0.00035616,11]
[359560822,1746124260242,-550.55422118,0.00035616,11]
[359560823,1746124260252,-450.0,0.00035616,11]
[359560824,1746124260262,-520.46214784,0.00035616,11]
[359560825,1746124260271,-151.0,0.00035616,7]
[359560826,1746124260281,-164.833706,0.00035616,11]
[359560827,1746124260291,-151.0,0.00035616,7]
[359560828,1746124260300,-652.93,0.00035616,11]
[359560829,1746124260310,-155.164776,0.00035616,7]
[359560830,1746124260320,-450.0,0.00035616,11]
[359560831,1746124260403,-450.0,0.00035616,11]
[359560832,1746124260415,-509.06466826,0.00035616,11]
[359560833,1746124260424,-508.62511563,0.00035616,11]
[359560834,1746124260434,-610.78,0.00035616,11]
[359560835,1746124260444,-450.0,0.00035616,11]
[359560836,1746124260453,-525.61648786,0.00035616,11]
[359560837,1746124260462,-717.74,0.00035616,11]
[359560838,1746124260472,-450.0,0.00035616,11]
[359560839,1746124260481,-1456.06,0.00035616,11]
[359560840,1746124260490,-450.0,0.00035616,11]
[359560841,1746124260499,-450.0,0.00035616,11]
[359560842,1746124260509,-450.0,0.00035616,11]
[359560843,1746124260519,-450.0,0.00035616,11]
[359560844,1746124260528,-508.86484774,0.00035616,11]
[359560845,1746124260538,-450.0,0.00035616,11]
[359560846,1746124260547,-1000.0,0.00035616,11]
[359560847,1746124260556,-450.0,0.00035616,11]
[359560848,1746124260566,-450.0,0.00035616,11]
[359560849,1746124260575,-450.0,0.00035616,11]
[359560850,1746124260584,-450.0,0.00035616,11]
[359560851,1746124260594,-450.0,0.00035616,11]
[359560852,1746124260604,-636.1,0.00035616,11]
[359560853,1746124260613,-948.37,0.00035616,11]
[359560854,1746124260623,-450.0,0.00035616,11]
[359560855,1746124260632,-450.0,0.00035616,11]
[359560856,1746124260642,-450.0,0.00035616,11]
[359560857,1746124260651,-567.87,0.00035616,11]
[359560858,1746124260661,-515.6917752,0.00035616,11]
[359560859,1746124260672,-450.0,0.00035616,11]
[359560860,1746124260681,-450.0,0.00035616,11]
[359560861,1746124260691,-450.0,0.00035616,11]
[359560862,1746124260700,-450.0,0.00035616,11]
[359560863,1746124260709,-723.75,0.00035616,11]
[359560864,1746124260719,-450.0,0.00035616,11]
[359560865,1746124260728,-450.0,0.00035616,11]
[359560866,1746124260738,-450.0,0.00035616,11]
[359560867,1746124260748,-500.0,0.00035616,11]
[359560868,1746124260758,-2192.43,0.00035616,11]
[359560869,1746124260767,-450.0,0.00035616,11]
[359560870,1746124260777,-500.0,0.00035616,11]
[359560871,1746124260787,-531.56192764,0.00035616,11]
[359560872,1746124260797,-450.0,0.00035616,11]
[359560873,1746124260807,-504.44630563,0.00035616,11]
[359560874,1746124260817,-450.0,0.00035616,11]
[359560875,1746124260826,-790.24,0.00035616,11]
[359560876,1746124260836,-450.0,0.00035616,11]
[359560877,1746124260846,-2368.41,0.00035616,11]
[359560878,1746124260856,-450.0,0.00035616,11]
[359560879,1746124260866,-1031.38,0.00035616,11]
[359560880,1746124260878,-891.48,0.00035616,11]
[359560881,1746124260887,-473.25549256,0.00035616,11]
[359560882,1746124260897,-597.29461871,0.00035616,11]
[359560883,1746124260907,-450.0,0.00035616,11]
[359560884,1746124260916,-712.01,0.00035616,11]
[359560885,1746124260926,-602.02,0.00035616,11]
[359560886,1746124260935,-450.0,0.00035616,11]
[359560887,1746124260945,-519.74382878,0.00035616,11]
[359560888,1746124260954,-1699.73,0.00035616,2]
[359560889,1746124260963,-842.97,0.00035616,11]
[359560890,1746124260972,-450.0,0.00035616,11]
[359560891,1746124260981,-450.0,0.00035616,11]
[359560892,1746124260990,-450.0,0.00035616,11]
[359560893,1746124260999,-450.0,0.00035616,11]
[359560894,1746124261008,-450.0,0.00035616,11]
[359560895,1746124261018,-450.0,0.00035616,11]
[359560896,1746124261027,-481.24,0.00035616,11]
[359560897,1746124261037,-328.49173049,0.00035616,11]
[359560898,1746124261047,-450.0,0.00035616,11]
[359560899,1746124261060,-450.0,0.00035616,11]
[359560900,1746124261069,-1001.1,0.00035616,11]
[359560901,1746124261078,-772.63,0.00035616,11]
[359560902,1746124261087,-733.543096,0.00035616,7]
[359560903,1746124261096,-733.543096,0.00035616,7]
[359560904,1746124261105,-555.28646534,0.00035616,11]
[359560905,1746124261118,-450.0,0.00035616,11]
[359560906,1746124261128,-733.543097,0.00035616,7]
[359560907,1746124261138,-450.0,0.00035616,11]
[359560908,1746124261147,-1150.36,0.00035616,11]
[359560909,1746124261158,-450.0,0.00035616,11]
[359560910,1746124261167,-450.0,0.00035616,11]
[359560911,1746124261176,-450.0,0.00035616,11]
[359560912,1746124261186,-582.22293569,0.00035616,11]
[359560913,1746124261195,-450.0,0.00035616,11]
[359560914,1746124261204,-450.0,0.00035616,11]
[359560915,1746124261213,-450.0,0.00035616,11]
[359560916,1746124261222,-659.53,0.00035616,11]
[359560917,1746124261231,-987.51,0.00035616,11]
[359560918,1746124261240,-530.07981944,0.00035616,11]
[359560919,1746124261249,-955.98,0.00035616,11]
[359560920,1746124261259,-450.0,0.00035616,11]
[359560921,1746124261268,-450.0,0.00035616,11]
[359560922,1746124261277,-646.74,0.00035616,11]
[359560923,1746124261286,-450.0,0.00035616,11]
[359560924,1746124261296,-450.0,0.00035616,11]
[359560925,1746124261305,-793.72,0.00035616,11]
[359560926,1746124261314,-530.0,0.00035616,11]
[359560927,1746124261323,-3015.99,0.00035616,11]
[359560928,1746124261333,-450.0,0.00035616,11]
[359560929,1746124261342,-1072.01,0.00035616,11]
[359560930,1746124261351,-1067.21,0.00035616,11]
[359560931,1746124261360,-450.0,0.00035616,11]
[359560932,1746124261369,-1454.9,0.00035616,11]
[359560933,1746124261378,-214.11213897,0.00035616,11]
[359560934,1746124261388,-450.0,0.00035616,11]
[359560935,1746124261397,-164.833705,0.00035616,11]
[359560936,1746124261406,-450.0,0.00035616,11]
[359560937,1746124261417,-243.138765,0.00035616,7]
[359560938,1746124261427,-817.3,0.00035616,11]
[359560939,1746124261436,-1324.31,0.00035616,11]
[359560940,1746124261445,-450.0,0.00035616,11]
[359560941,1746124261455,-547.79685938,0.00035616,11]
[359560942,1746124261464,-450.0,0.00035616,11]
[359560943,1746124261473,-151.0,0.00035616,7]
[359560944,1746124261482,-2499.0,0.00035616,11]
[359560945,1746124261491,-151.0,0.00035616,7]
[359560946,1746124261500,-935.37,0.00035616,11]
[359560947,1746124261507,-165.910043,0.00035616,7]
[359560948,1746124261516,-504.1,0.00035616,11]
[359560949,1746124261525,-450.0,0.00035616,11]
[359560950,1746124261534,-450.0,0.00035616,11]
[359560951,1746124261543,-672.98,0.00035616,11]
[359560952,1746124261553,-522.66,0.00035616,11]
[359560953,1746124261562,-450.0,0.00035616,11]
[359560954,1746124261572,-471.18,0.00035616,11]
[359560955,1746124261581,-770.01,0.00035616,11]
[359560956,1746124261591,-500.0,0.00035616,11]
[359560957,1746124261600,-450.0,0.00035616,11]
[359560958,1746124261610,-450.0,0.00035616,11]
[359560959,1746124261620,-450.0,0.00035616,11]
[359560960,1746124261629,-797.18,0.00035616,11]
[359560961,1746124261639,-450.0,0.00035616,11]
[359560962,1746124261649,-450.0,0.00035616,11]
[359560963,1746124261659,-918.81,0.00035616,11]
[359560964,1746124261668,-326.680385,0.00035616,7]
[359560965,1746124261677,-450.0,0.00035616,11]
[359560966,1746124261688,-326.680385,0.00035616,7]
[359560967,1746124261697,-1113.64,0.00035616,11]
[359560968,1746124261707,-450.0,0.00035616,11]
[359560969,1746124261716,-326.680385,0.00035616,7]
[359560970,1746124261725,-326.680385,0.00035616,7]
[359560971,1746124261735,-450.0,0.00035616,11]
[359560972,1746124261744,-151.0,0.00035616,7]
[359560973,1746124261754,-500.0,0.00035616,11]
[359560974,1746124261763,-151.0,0.00035616,7]
[359560975,1746124261773,-500.0,0.00035616,11]
[359560976,1746124261783,-450.0,0.00035616,11]
[359560977,1746124261793,-500.0,0.00035616,11]
[359560978,1746124261803,-151.0,0.00035616,7]
[359560979,1746124261814,-500.0,0.00035616,11]
[359560980,1746124261824,-450.0,0.00035616,11]
[359560981,1746124261834,-500.0,0.00035616,11]
[359560982,1746124261844,-151.0,0.00035616,7]
[359560983,1746124261854,-151.0,0.00035616,7]
[359560984,1746124261864,-500.0,0.00035616,11]
[359560985,1746124261873,-500.0,0.00035616,11]
[359560986,1746124261883,-500.0,0.00035616,11]
[359560987,1746124261893,-500.0,0.00035616,11]
[359560988,1746124261903,-500.0,0.00035616,11]
[359560989,1746124261913,-450.0,0.00035616,11]
[359560990,1746124261923,-450.0,0.00035616,11]
[359560991,1746124261933,-500.0,0.00035616,11]
[359560992,1746124261944,-500.0,0.00035616,11]
[359560993,1746124261954,-326.680385,0.00035616,7]
[359560994,1746124261963,-500.0,0.00035616,11]
[359560995,1746124261973,-450.0,0.00035616,11]
[359560996,1746124261983,-500.0,0.00035616,11]
[359560997,1746124261993,-326.680385,0.00035616,7]
[359560998,1746124262003,-500.0,0.00035616,11]
[359560999,1746124262013,-450.0,0.00035616,11]
[359561000,1746124262023,-326.680385,0.00035616,7]
[359561001,1746124262033,-500.0,0.00035616,11]
[359561002,1746124262043,-450.0,0.00035616,11]
[359561003,1746124262052,-500.0,0.00035616,11]
[359561004,1746124262062,-450.0,0.00035616,11]
[359561005,1746124262071,-326.680385,0.00035616,7]
[359561006,1746124262081,-509.33862856,0.00035616,11]
[359561007,1746124262091,-500.0,0.00035616,11]
[359561008,1746124262102,-450.0,0.00035616,11]
[359561009,1746124262111,-500.0,0.00035616,11]
[359561010,1746124262125,-500.0,0.00035616,11]
[359561011,1746124262135,-500.0,0.00035616,11]
[359561012,1746124262144,-500.0,0.00035616,11]
[359561013,1746124262154,-970.02,0.00035616,11]
[359561014,1746124262165,-500.0,0.00035616,11]
[359561015,1746124262175,-450.0,0.00035616,11]
[359561016,1746124262185,-174.2862953,0.00035616,11]
[359561017,1746124262197,-450.0,0.00035616,11]
[359561018,1746124262208,-271.0526929,0.00035616,11]
[359561019,1746124262218,-450.0,0.00035616,11]
[359561020,1746124262228,-450.0,0.00035616,11]
[359561021,1746124262238,-450.0,0.00035616,11]
[359561022,1746124262248,-814.77,0.00035616,11]
[359561023,1746124262257,-960.05,0.00035616,11]
[359561024,1746124262267,-578.37,0.00035616,11]
[359561025,1746124262276,-450.0,0.00035616,11]
[359561026,1746124262286,-1088.4,0.00035616,11]
[359561027,1746124262296,-758.67,0.00035616,11]
[359561028,1746124262305,-151.0,0.00035616,7]
[359561029,1746124262317,-151.0,0.00035616,7]
[359561030,1746124262327,-450.0,0.00035616,11]
[359561031,1746124262337,-450.0,0.00035616,11]
[359561032,1746124262347,-151.0,0.00035616,7]
[359561033,1746124262357,-151.0,0.00035616,7]
[359561034,1746124262367,-450.0,0.00035616,11]
[359561035,1746124262377,-492.34,0.00035616,11]
[359561036,1746124262386,-510.27980393,0.00035616,11]
[359561037,1746124262395,-590.27,0.00035616,11]
[359561038,1746124262405,-893.59,0.00035616,11]
[359561039,1746124262414,-151.0,0.00035616,7]
[359561040,1746124262424,-509.56860565,0.00035616,11]
[359561041,1746124262433,-160.60853297,0.00035616,7]
[359561042,1746124262444,-524.54328535,0.00035616,11]
[359561043,1746124262453,-450.0,0.00035616,11]
[359561044,1746124262462,-450.0,0.00035616,11]
[359561045,1746124262471,-287.62128763,0.00035616,11]
[359561046,1746124262480,-590.59,0.00035616,11]
[359561047,1746124262490,-503.91265424,0.00035616,11]
[359561048,1746124262500,-450.0,0.00035616,11]
[359561049,1746124262510,-450.0,0.00035616,11]
[359561050,1746124262520,-618.14,0.00035616,11]
[359561051,1746124262530,-213.95404371,0.00035616,11]
[359561052,1746124262541,-582.41,0.00035616,11]
[359561053,1746124262551,-450.0,0.00035616,11]
[359561054,1746124262561,-509.62297293,0.00035616,11]
[359561055,1746124262571,-985.94,0.00035616,11]
[359561056,1746124262581,-450.0,0.00035616,11]
[359561057,1746124262591,-160.325611,0.00035616,7]
[359561058,1746124262602,-160.325611,0.00035616,7]
[359561059,1746124262613,-160.325611,0.00035616,7]
[359561060,1746124262624,-450.0,0.00035616,11]
[359561061,1746124262634,-160.325611,0.00035616,7]
[359561062,1746124262644,-506.65691674,0.00035616,11]
[359561063,1746124262654,-450.0,0.00035616,11]
[359561064,1746124262664,-5000.0,0.00035616,11]
[359561065,1746124262674,-450.0,0.00035616,11]
[359561066,1746124262683,-450.0,0.00035616,11]
[359561067,1746124262694,-485.94,0.00035616,11]
[359561068,1746124262705,-160.325611,0.00035616,7]
[359561069,1746124262715,-450.0,0.00035616,11]
[359561070,1746124262726,-450.0,0.00035616,11]
[359561071,1746124262737,-160.325611,0.00035616,7]
[359561072,1746124262748,-160.325611,0.00035616,7]
[359561073,1746124262758,-599.0836083,0.00035616,11]
[359561074,1746124262769,-160.325611,0.00035616,7]
[359561075,1746124262779,-668.62,0.00035616,11]
[359561076,1746124262789,-450.0,0.00035616,11]
[359561077,1746124262800,-502.39,0.00035616,11]
[359561078,1746124262811,-450.0,0.00035616,11]
[359561079,1746124262821,-509.1128861,0.00035616,11]
[359561080,1746124262831,-1307.63,0.00035616,11]
[359561081,1746124262841,-391.468518,0.00035616,7]
[359561082,1746124262851,-450.0,0.00035616,11]
[359561083,1746124262861,-450.0,0.00035616,11]
[359561084,1746124262871,-728.6,0.00035616,11]
[359561085,1746124262881,-300.0,0.00035616,11]
[359561086,1746124262891,-391.468518,0.00035616,7]
[359561087,1746124262901,-391.468518,0.00035616,7]
[359561088,1746124262911,-391.468518,0.00035616,7]
[359561089,1746124262920,-450.0,0.00035616,11]